bitfinex/quotes_SOLUSD_20251031
["timestamp","ask_amount","ask_price","bid_price","bid_amount"]
[1761926647298,0.67000001,188.56,188.55,5.30363298]
[1761926647499,6.67885285,188.56,188.52,5.30447697]
[1761926647709,6.00885284,188.55,188.49,2.10956547]
[1761926648022,3.89928737,188.54,188.51,2.10956547]
[1761926648223,1e-08,188.56,188.43,0.72]
[1761926648224,2.10956547,188.52,188.43,0.72]
[1761926648423,3.90047968,188.51,188.47,2.10956547]
[1761926648641,0.67,188.5,188.47,2.10956547]
[1761926649011,0.67,188.5,188.46,20.592]
[1761926649012,0.67,188.54,188.49,2.10956547]
[1761926649210,3.90056618,188.53,188.49,2.10956547]
[1761926649415,0.67,188.54,188.49,5.37453309]
[1761926649732,3.90079385,188.53,188.5,5.37453309]
[1761926649897,1e-08,188.56,188.53,5.30419561]
[1761926650103,4.56981814,188.55,188.51,5.30463758]
[1761926650302,3.89981814,188.54,188.51,5.30463758]
[1761926650610,3.89981814,188.53,188.51,5.30463758]
[1761926650814,0.67,188.53,188.51,5.30463758]
[1761926651932,5.3745331,188.56,188.51,5.30463758]
[1761926652225,4.5740429,188.55,188.51,5.30463758]
[1761926652428,3.9040429,188.54,188.51,5.30463758]
[1761926652632,0.67,188.54,188.51,23.94106659]
[1761926652932,0.67000001,188.56,188.52,5.37453309]
[1761926653226,3.90487519,188.55,188.51,23.94106659]
[1761926653430,3.90609617,188.54,188.51,23.94106659]
[1761926653626,0.67,188.55,188.51,23.94106659]
[1761926653932,3.90633171,188.54,188.51,23.94106659]
[1761926654110,0.67,188.55,188.52,5.37453309]
[1761926654310,1e-08,188.56,188.51,18.5665335]
[1761926654311,1e-08,188.56,188.53,5.37453309]
[1761926654613,1e-08,188.56,188.55,5.37453309]
[1761926655032,1e-08,188.56,188.55,16.16768392]
[1761926656178,1e-08,188.56,188.55,21.4713169]
[1761926656506,0.2,188.65,188.59,30.38082769]
[1761926656717,0.2,188.65,188.64,5.37453309]
[1761926657939,0.2,188.65,188.64,6.09453309]
[1761926658148,0.2,188.65,188.64,11.39563571]
[1761926658321,0.2,188.65,188.64,21.46878654]
[1761926658707,0.2,188.67,188.65,10.07315083]
[1761926658915,0.2,188.67,188.66,15.97773798]
[1761926659222,0.2,188.67,188.66,15.44768392]
[1761926660024,0.2,188.67,188.65,20.592]
[1761926660229,0.2,188.67,188.66,10.67507374]
[1761926662338,0.2,188.67,188.66,21.46822457]
[1761926662749,0.2,188.69,188.68,30.66515083]
[1761926662928,0.2,188.7,188.69,30.66515083]
[1761926663126,0.2,188.7,188.69,36.71968392]
[1761926663631,1e-08,188.7,188.69,36.71968392]
[1761926663951,5.37453309,188.81,188.69,36.71968392]
[1761926663952,0.66,188.79,188.72,20.592]
[1761926664242,1e-08,188.75,188.74,5.29829394]
[1761926664547,1e-08,188.75,188.74,20.74597786]
[1761926664725,1e-08,188.75,188.74,26.80051095]
[1761926665446,1e-08,188.75,188.74,21.42597786]
[1761926665741,1e-08,188.75,188.74,26.80051095]
[1761926665948,0.86,188.86,188.75,10.07315083]
[1761926666163,0.86,188.86,188.84,10.66990345]
[1761926666617,0.2,188.86,188.85,5.37453309]
[1761926667319,0.86,188.86,188.82,5.29604914]
[1761926667529,0.86,188.86,188.8,5.29638013]
[1761926667836,0.66,188.85,188.8,5.37453309]
[1761926668152,0.66,188.85,188.81,10.67074863]
[1761926668333,0.66,188.85,188.82,5.37453309]
[1761926668744,0.66,188.85,188.81,5.37453309]
[1761926668939,0.66,188.85,188.8,5.37453309]
[1761926669463,5.37453309,188.84,188.78,10.6717044]
[1761926669952,0.67,188.83,188.79,5.37453309]
[1761926670151,0.67,188.83,188.78,5.29717131]
[1761926670359,0.67,188.83,188.79,10.67119179]
[1761926670544,0.67,188.83,188.78,5.29714313]
[1761926670743,0.67,188.83,188.78,5.37453309]
[1761926670939,5.37453309,188.8,188.75,5.29778444]
[1761926671142,19.20528223,188.83,188.74,5.29829394]
[1761926671436,0.67,188.82,188.75,5.37453309]
[1761926671753,21.262,188.82,188.74,5.29829394]
[1761926671941,0.67,188.81,188.77,5.37453309]
[1761926672269,0.67,188.81,188.76,10.67214775]
[1761926672563,5.9663413,188.81,188.76,5.37453309]
[1761926672759,0.67,188.81,188.76,5.37453309]
[1761926672947,0.67,188.8,188.77,5.37453309]
[1761926673149,0.67,188.83,188.79,5.37453309]
[1761926673360,0.67,188.85,188.81,5.37453309]
[1761926673737,0.67,188.85,188.83,5.37453309]
[1761926673948,0.67,188.85,188.79,0.28432314]
[1761926674263,0.67,188.85,188.83,5.37453309]
[1761926674566,0.67,188.85,188.76,5.37453309]
[1761926674567,11.33978457,188.85,188.77,5.29745192]
[1761926674737,5.37453309,188.81,188.76,5.29752488]
[1761926674947,5.37453309,188.81,188.76,10.67205797]
[1761926675155,0.67,188.8,188.77,5.37453309]
[1761926675558,0.67,188.8,188.76,10.67205797]
[1761926675877,0.67,188.8,188.77,5.37453309]
[1761926676258,0.67,188.8,188.75,10.07315083]
[1761926676462,0.67,188.8,188.75,18.54304635]
[1761926676663,0.67,188.8,188.76,5.37453309]
[1761926677548,0.67,188.83,188.79,5.37453309]
[1761926677758,0.67,188.83,188.8,5.37453309]
[1761926677964,0.67,188.83,188.79,5.37453309]
[1761926678374,5.37453309,188.82,188.76,5.37453309]
[1761926678570,5.37453309,188.82,188.76,10.67219]
[1761926678879,0.67,188.81,188.77,5.37453309]
[1761926679262,6.04453309,188.83,188.78,5.37453309]
[1761926679456,0.67,188.83,188.78,5.37453309]
[1761926679662,0.67,188.83,188.8,5.37453309]
[1761926679982,0.67,188.83,188.81,5.37453309]
[1761926680163,3.84573024,188.85,188.82,5.37453309]
[1761926680357,0.87,188.86,188.83,5.29576868]
[1761926680558,0.67,188.85,188.83,10.67030177]
[1761926680879,0.67,188.85,188.81,5.37453309]
[1761926681196,0.67,188.85,188.82,5.37453309]
[1761926681368,0.67,188.85,188.78,19.21009958]
[1761926681564,0.67,188.85,188.79,10.07315083]
[1761926682154,0.67,188.85,188.8,5.37453309]
[1761926682357,6.04453309,188.85,188.8,10.67095431]
[1761926682575,0.67,188.85,188.82,5.37453309]
[1761926682780,0.2,188.86,188.82,5.37453309]
[1761926682781,0.67,188.84,188.82,5.37453309]
[1761926682981,0.67,188.84,188.81,5.37453309]
[1761926683468,0.2,188.86,188.83,5.37453309]
[1761926683667,0.2,188.86,188.84,5.37453309]
[1761926684060,0.87,188.86,188.84,5.37453309]
[1761926684256,0.87,188.86,188.83,5.37453309]
[1761926684475,0.87,188.86,188.83,10.67016509]
[1761926684651,0.2,188.86,188.83,10.67016509]
[1761926684857,0.67,188.85,188.82,5.37453309]
[1761926685264,0.67,188.85,188.81,5.29632964]
[1761926685460,0.67,188.85,188.8,5.29659386]
[1761926685670,5.37453309,188.84,188.77,13.24294267]
[1761926685871,5.37453309,188.84,188.78,5.29717131]
[1761926686082,6.04453309,188.83,188.78,5.29717131]
[1761926686290,6.04453309,188.83,188.77,10.67197201]
[1761926686491,4.52181153,188.82,188.77,10.67197201]
[1761926686860,0.67,188.81,188.77,10.67197201]
[1761926687281,0.67,188.81,188.75,9.78882769]
[1761926687488,6.04453309,188.81,188.75,10.67254633]
[1761926687672,5.37453309,188.8,188.75,5.29801324]
[1761926687860,0.67,188.79,188.76,5.37453309]
[1761926688057,3.85244953,188.8,188.77,5.37453309]
[1761926688287,5.37453309,188.83,188.77,5.37453309]
[1761926688492,9.22738486,188.82,188.77,10.67170681]
[1761926688688,6.04453309,188.82,188.77,10.67170681]
[1761926688888,9.89690304,188.81,188.77,5.29717372]
[1761926689079,6.04453309,188.81,188.77,5.29717372]
[1761926689266,0.67,188.8,188.77,5.29717372]
[1761926689467,6.04453309,188.8,188.74,10.67282703]
[1761926689886,6.04453309,188.8,188.74,5.29829394]
[1761926689887,0.67,188.79,188.74,5.29829394]
[1761926690193,5.54453309,188.79,188.74,5.37453309]
[1761926690371,10.67152403,188.79,188.74,10.67276426]
[1761926691381,13.44266403,188.79,188.73,8.14567309]
[1761926691575,8.14567309,188.79,188.73,8.14567309]
[1761926691993,8.81567309,188.78,188.72,13.44452853]
[1761926692191,8.14567309,188.77,188.72,5.29885544]
[1761926692368,0.67,188.76,188.72,5.29885544]
[1761926692564,8.81567309,188.76,188.7,8.14567309]
[1761926692770,8.14567309,188.73,188.67,9.78882769]
[1761926693082,0.67,188.75,188.66,0.67]
[1761926693389,8.14567309,188.72,188.66,8.81567309]
[1761926693599,0.67,188.74,188.66,8.81567309]
[1761926693783,8.14567309,188.72,188.66,8.81567309]
[1761926693974,8.14567309,188.71,188.66,0.67]
[1761926694169,8.14567309,188.71,188.67,5.30025971]
[1761926694392,8.14567309,188.73,188.68,8.14567309]
[1761926694578,8.81567309,188.76,188.7,8.14567309]
[1761926695284,3.86963851,188.75,188.71,8.14567309]
[1761926695486,8.14567309,188.77,188.71,8.81567309]
[1761926695682,8.14567309,188.74,188.68,9.78882769]
[1761926695998,8.14567309,188.74,188.68,10.45882769]
[1761926696210,8.14567309,188.74,188.69,5.29969791]
[1761926696374,3.87304796,188.73,188.7,0.67]
[1761926696574,8.14567309,188.76,188.7,9.09999623]
[1761926696772,8.14567309,188.77,188.71,8.14567309]
[1761926696977,3.87320642,188.76,188.71,8.81567309]
[1761926697301,8.14567309,188.74,188.69,18.5489427]
[1761926697514,3.87304434,188.73,188.69,19.2189427]
[1761926697800,8.14567309,188.74,188.69,19.2189427]
[1761926697801,8.81567309,188.74,188.69,19.2189427]
[1761926697976,3.87654291,188.73,188.7,0.67]
[1761926698300,3.88209316,188.72,188.71,5.29913624]
[1761926698706,3.88209316,188.72,188.71,5.96913624]
[1761926698876,8.81567309,188.78,188.71,14.11480933]
[1761926699076,8.81567309,188.78,188.72,8.14567309]
[1761926699077,3.8822198,188.77,188.72,8.14567309]
[1761926699402,3.8822198,188.76,188.72,8.14567309]
[1761926699604,3.8822198,188.75,188.71,14.11480933]
[1761926699777,3.8822198,188.74,188.71,14.11480933]
[1761926699980,8.14567309,188.77,188.71,27.35264993]
[1761926700206,3.88779399,188.76,188.72,8.80567309]
[1761926700405,3.88779399,188.75,188.72,8.80567309]
[1761926700609,3.88779399,188.74,188.73,8.14567309]
[1761926700905,3.88779399,188.74,188.73,18.87882392]
[1761926701297,3.89414209,188.74,188.73,18.87882392]
[1761926701497,8.84567309,188.82,188.74,10.07315083]
[1761926701688,8.84567309,188.82,188.77,8.14567309]
[1761926701689,3.89369656,188.81,188.77,8.14567309]
[1761926701880,3.89369656,188.8,188.77,8.14567309]
[1761926702079,3.89369656,188.79,188.78,5.29717131]
[1761926702480,3.89369656,188.79,188.78,5.95717131]
[1761926703204,3.89369656,188.79,188.76,13.44313243]
[1761926703422,12.73936965,188.78,188.74,5.29829394]
[1761926703583,3.89369656,188.77,188.74,5.29829394]
[1761926703918,3.89369656,188.76,188.74,5.29829394]
[1761926704081,3.89369656,188.75,188.74,5.29829394]
[1761926704490,3.89369656,188.75,188.73,5.29857468]
[1761926704711,8.84567309,188.78,188.73,19.20501138]
[1761926704895,3.89527291,188.77,188.73,19.20501138]
[1761926705095,3.89527291,188.76,188.73,27.35068447]
[1761926705408,3.89527291,188.75,188.73,27.35068447]
[1761926705599,8.14567309,188.82,188.75,10.07315083]
[1761926705910,3.89759592,188.81,188.77,8.14567309]
[1761926706108,3.89759592,188.8,188.77,8.14567309]
[1761926706328,12.04326901,188.79,188.73,27.35068447]
[1761926706617,3.89759592,188.78,188.73,27.35068447]
[1761926706812,3.89759592,188.77,188.73,27.35068447]
[1761926706994,3.89759592,188.76,188.74,8.80567309]
[1761926707203,3.89759592,188.75,188.74,0.66]
[1761926707388,3.89759592,188.75,188.73,18.54501138]
[1761926707718,8.14567309,188.81,188.73,18.54501138]
[1761926707901,4.6019297,188.8,188.73,18.54501138]
[1761926708097,3.9019297,188.79,188.73,5.29857468]
[1761926708306,8.14567309,188.77,188.73,18.54501138]
[1761926708610,3.9019297,188.76,188.74,8.80567309]
[1761926708920,8.14567309,188.8,188.74,8.80567309]
[1761926709086,3.89813562,188.79,188.75,8.80567309]
[1761926709287,3.89813562,188.78,188.74,8.14567309]
[1761926709623,3.89813562,188.77,188.74,8.80567309]
[1761926709788,8.14567309,188.81,188.76,8.14567309]
[1761926709981,3.89995592,188.8,188.77,8.14567309]
[1761926710181,3.89995592,188.79,188.76,0.28432314]
[1761926710383,0.7,188.87,188.79,18.53911753]
[1761926710684,3.90186908,188.85,188.8,18.21882392]
[1761926710880,8.14567309,188.83,188.79,5.29689072]
[1761926711091,8.14567309,188.81,188.79,5.29689072]
[1761926711301,3.90186908,188.8,188.79,5.29689072]
[1761926711519,12.74754217,188.8,188.74,13.24516233]
[1761926711723,12.74754217,188.8,188.74,9.08999623]
[1761926711724,3.90186908,188.79,188.74,9.08999623]
[1761926712013,3.90202044,188.78,188.74,0.94432314]
[1761926712192,8.14567309,188.79,188.74,0.94432314]
[1761926712391,8.14567309,188.79,188.75,13.90503311]
[1761926712594,8.14567309,188.79,188.75,18.54304635]
[1761926712797,8.84567309,188.8,188.75,19.20304635]
[1761926713028,3.9037834,188.79,188.75,18.54304635]
[1761926713197,3.9037834,188.79,188.75,5.29801324]
[1761926713198,8.14567309,188.79,188.75,5.29801324]
[1761926713392,8.14567309,188.77,188.73,5.29833401]
[1761926713816,8.84567309,188.77,188.73,5.29833401]
[1761926714019,20.592,188.82,188.73,18.54477071]
[1761926714321,8.14567309,188.78,188.73,18.54477071]
[1761926714616,12.74840251,188.77,188.73,18.54477071]
[1761926714818,8.14567309,188.75,188.71,5.29913624]
[1761926715317,8.14567309,188.76,188.71,19.20697684]
[1761926715511,0.7,188.77,188.71,27.35264993]
[1761926715709,3.90503407,188.76,188.72,8.80567309]
[1761926715898,8.14567309,188.79,188.74,8.14567309]
[1761926716095,3.90480607,188.78,188.74,8.14567309]
[1761926716294,8.84567309,188.8,188.74,8.14567309]
[1761926716295,8.14567309,188.79,188.74,8.14567309]
[1761926716495,3.9056652,188.78,188.74,8.14567309]
[1761926716710,0.7,188.79,188.75,5.29801324]
[1761926717107,8.84567309,188.79,188.75,18.54304635]
[1761926718925,0.72,188.85,188.78,8.14567309]
[1761926719223,8.14567309,188.79,188.75,25.89001324]
[1761926719518,8.14567309,188.8,188.75,34.03568633]
[1761926719724,8.14567309,188.82,188.76,8.14567309]
[1761926719900,12.05694124,188.81,188.76,8.14567309]
[1761926720096,8.14567309,188.81,188.76,8.14567309]
[1761926720301,8.86567309,188.81,188.76,8.14567309]
[1761926720511,8.14567309,188.84,188.76,8.14567309]
[1761926720721,8.14567309,188.84,188.75,27.36871944]
[1761926720722,0.72,188.8,188.75,27.36871944]
[1761926720917,0.72,188.83,188.76,8.82567309]
[1761926721118,3.91103151,188.82,188.76,0.68]
[1761926721317,0.72,188.83,188.76,0.68]
[1761926721318,0.72,188.83,188.77,8.14567309]
[1761926721624,3.91083584,188.82,188.81,8.14567309]
[1761926721812,3.91083584,188.82,188.77,9.78882769]
[1761926721813,0.72,188.85,188.79,8.14567309]
[1761926722131,3.91026095,188.84,188.79,8.14567309]
[1761926722310,0.72,188.85,188.79,8.14567309]
[1761926722499,3.90909732,188.84,188.79,8.14567309]
[1761926722704,0.72,188.85,188.79,8.14567309]
[1761926722904,3.90798266,188.84,188.8,18.53813558]
[1761926723126,8.14567309,188.83,188.8,5.29661016]
[1761926723315,8.14567309,188.83,188.66,1.99999999]
[1761926723316,8.14567309,188.81,188.77,5.29745192]
[1761926723521,12.05262273,188.8,188.74,5.29829394]
[1761926723700,3.90694964,188.79,188.74,18.54402881]
[1761926723904,3.90694964,188.78,188.74,18.54402881]
[1761926724113,0.72,188.8,188.74,26.6897019]
[1761926724424,3.90680056,188.79,188.75,8.14567309]
[1761926724621,0.72,188.82,188.76,8.14567309]
[1761926724927,4.62780404,188.81,188.77,5.29745192]
[1761926725115,3.90780404,188.8,188.77,5.29745192]
[1761926725302,0.72,188.8,188.77,5.29745192]
[1761926726816,0.72,188.8,188.76,18.54206082]
[1761926728326,3.90748227,188.79,188.76,18.54206082]
[1761926728634,0.72,188.8,188.76,18.54206082]
[1761926728828,3.90860189,188.79,188.74,26.6896678]
[1761926729033,3.90807011,188.78,188.74,5.29829394]
[1761926729203,0.72,188.8,188.74,27.3697019]
[1761926729531,3.90752914,188.79,188.77,8.14567309]
[1761926729831,8.86567309,188.83,188.76,8.14567309]
[1761926730029,4.55867036,188.82,188.76,8.14567309]
[1761926730332,3.90867036,188.81,188.76,8.14567309]
[1761926730626,3.90867036,188.8,188.76,8.14567309]
[1761926730831,3.90867036,188.79,188.76,8.14567309]
[1761926731029,0.65,188.82,188.77,5.29745192]
[1761926731253,3.90953281,188.81,188.77,18.54108173]
[1761926731530,3.90953281,188.8,188.77,18.54108173]
[1761926731837,0.65,188.81,188.77,18.54108173]
[1761926732128,3.90995246,188.8,188.77,18.54108173]
[1761926732319,0.65,188.81,188.77,5.29745192]
[1761926732519,4.55969731,188.8,188.77,5.29745192]
[1761926732723,3.90969731,188.79,188.77,5.29745192]
[1761926732921,0.65,188.8,188.76,5.29773257]
[1761926733121,3.90981563,188.79,188.76,5.29773257]
[1761926733447,13.4415157,188.83,188.76,18.54206399]
[1761926733618,3.90990616,188.82,188.78,8.14567309]
[1761926733822,3.90990616,188.81,188.78,8.14567309]
[1761926734050,0.65,188.84,188.78,8.14567309]
[1761926734345,3.91018396,188.83,188.8,8.14567309]
[1761926734556,3.91018396,188.82,188.8,8.14567309]
[1761926734716,0.85,188.86,188.79,0.69]
[1761926734915,4.56148826,188.85,188.8,8.14567309]
[1761926735123,3.91148826,188.84,188.81,5.29632964]
[1761926735446,3.91148826,188.83,188.81,5.29632964]
[1761926735625,3.91148826,188.82,188.81,5.29632964]
[1761926735821,0.65,188.85,188.81,5.29632964]
[1761926736028,3.91165895,188.84,188.81,9.27348315]
[1761926736255,0.85,188.86,188.81,9.27348315]
[1761926736544,3.91197357,188.85,188.81,9.27348315]
[1761926736743,3.91197357,188.84,188.81,18.53715374]
[1761926736952,3.91197357,188.83,188.82,0.69]
[1761926737147,0.2,188.86,188.82,5.29604914]
[1761926737446,3.91228878,188.85,188.82,5.29604914]
[1761926737654,3.91228878,188.84,188.82,5.29604914]
[1761926737858,0.85,188.86,188.82,5.29604914]
[1761926738032,4.56207532,188.85,188.82,5.29604914]
[1761926738234,3.91207532,188.84,188.82,5.29604914]
[1761926738442,0.2,188.86,188.83,0.69]
[1761926738644,3.91278309,188.85,188.82,5.98604914]
[1761926738845,3.91278309,188.84,188.82,14.12452357]
[1761926739050,0.2,188.86,188.84,5.29548824]
[1761926739235,3.91282931,188.85,188.84,5.29548824]
[1761926739551,3.91282931,188.85,188.84,5.98548824]
[1761926739751,3.91282931,188.85,188.82,5.2957936]
[1761926739957,0.65,188.85,188.82,5.2957936]
[1761926740181,4.56327626,188.84,188.82,5.2957936]
[1761926740328,0.65,188.85,188.82,5.2957936]
[1761926740524,3.91320249,188.84,188.82,5.2957936]
[1761926740834,0.65,188.85,188.82,5.2957936]
[1761926741157,3.91618296,188.84,188.81,5.29632964]
[1761926741326,0.65,188.85,188.81,5.29632964]
[1761926741525,3.91699162,188.84,188.81,5.29632964]
[1761926741753,0.65,188.85,188.81,5.29632964]
[1761926741956,4.56816615,188.84,188.81,5.29632964]
[1761926742140,0.65,188.84,188.81,5.29632964]
[1761926742641,0.85,188.86,188.81,5.29632964]
[1761926742959,3.91803553,188.85,188.82,8.82847443]
[1761926743165,3.91803553,188.84,188.83,5.29576868]
[1761926743329,3.91803553,188.84,188.83,14.12424311]
[1761926743955,3.91803553,188.84,188.83,5.29576868]
[1761926745227,0.2,188.86,188.83,13.43424311]
[1761926745452,3.91899523,188.85,188.83,27.36366481]
[1761926745663,0.2,188.86,188.83,27.36366481]
[1761926745844,3.91899453,188.85,188.83,18.53519038]
[1761926746160,0.2,188.86,188.83,18.53519038]
[1761926746359,3.91927618,188.85,188.83,26.67366481]
[1761926746555,0.2,188.86,188.83,18.53519038]
[1761926746731,3.91927618,188.85,188.83,5.29576868]
[1761926747053,3.91908441,188.84,188.83,5.29576868]
[1761926747262,4.56908441,188.84,188.81,5.29632964]
[1761926747436,3.91908441,188.83,188.81,5.29632964]
[1761926747636,0.65,188.84,188.79,19.22876446]
[1761926747837,3.91870289,188.83,188.79,19.22876446]
[1761926748036,3.91870289,188.82,188.8,0.69]
[1761926748237,0.65,188.84,188.8,0.69]
[1761926748454,3.91847034,188.83,188.81,8.13847443]
[1761926748762,0.85,188.86,188.81,8.13847443]
[1761926748955,3.91843539,188.85,188.81,8.82847443]
[1761926749160,3.91843539,188.84,188.82,5.29604914]
[1761926749461,3.91843539,188.83,188.81,5.29624794]
[1761926749634,3.92030453,188.82,188.81,5.29624794]
[1761926749835,3.92030453,188.82,188.8,52.19652916]
[1761926750034,8.78847443,188.85,188.8,52.19652916]
[1761926750241,4.57018131,188.84,188.8,52.19652916]
[1761926750470,3.92018131,188.83,188.8,52.19652916]
[1761926750640,3.92018131,188.82,188.8,52.19652916]
[1761926750840,0.65,188.83,188.8,52.19652916]
[1761926751062,3.92043279,188.82,188.8,52.19652916]
[1761926751239,3.9208006,188.81,188.8,52.19652916]
[1761926752556,3.9208006,188.81,188.8,5.29652916]
[1761926753556,3.9208006,188.81,188.8,10.65466266]
[1761926753734,3.9208006,188.81,188.8,11.34466266]
[1761926754355,0.65,188.85,188.8,11.34466266]
[1761926754567,3.91981591,188.84,188.8,5.98652916]
[1761926754752,3.91981591,188.83,188.8,5.98652916]
[1761926754953,3.91981591,188.82,188.8,5.29652916]
[1761926755162,3.91981591,188.81,188.78,5.29717131]
[1761926755347,3.92196448,188.8,188.78,24.58823308]
[1761926755556,0.65,188.84,188.78,11.34530481]
[1761926755751,3.92257472,188.83,188.78,11.34530481]
[1761926755951,3.92257472,188.82,188.8,9.78882769]
[1761926756162,0.2,188.86,188.8,10.07315083]
[1761926756350,4.57316765,188.85,188.79,9.78882769]
[1761926756545,3.92316765,188.84,188.78,66.13009958]
[1761926756847,3.92316765,188.83,188.79,0.69]
[1761926757061,3.92316765,188.82,188.79,0.69]
[1761926757367,2.75402434,188.85,188.8,5.29661016]
[1761926757546,3.92263722,188.84,188.8,5.29661016]
[1761926757744,3.92263722,188.83,188.8,5.29661016]
[1761926758038,3.92263722,188.82,188.8,5.29661016]
[1761926758238,0.65,188.84,188.8,5.29661016]
[1761926758442,3.92356876,188.83,188.8,5.29661016]
[1761926758651,3.92356876,188.82,188.8,5.29661016]
[1761926758852,0.65,188.84,188.8,5.98661016]
[1761926759049,3.92384386,188.83,188.8,5.98661016]
[1761926759243,3.92384386,188.82,188.8,5.98661016]
[1761926759443,0.65,188.84,188.8,5.98661016]
[1761926759671,3.9244581,188.83,188.8,5.29661016]
[1761926759967,3.9244581,188.82,188.81,0.66]
[1761926760167,3.9244581,188.82,188.8,5.95661016]
[1761926760342,2.98402434,188.86,188.81,2.10402434]
[1761926760544,6.70912264,188.85,188.8,52.19661016]
[1761926760839,2.10402434,188.83,188.8,52.19661016]
[1761926761039,3.9250983,188.82,188.8,52.19661016]
[1761926761243,0.2,188.86,188.8,5.29661016]
[1761926761244,3.9250983,188.81,188.8,5.29661016]
[1761926761470,3.9250983,188.81,188.79,5.29689072]
[1761926761657,3.9250983,188.8,188.79,5.29689072]
[1761926761973,3.9250983,188.8,188.78,47.56]
[1761926761974,6.70912264,188.8,188.78,5.29709226]
[1761926762145,3.9250983,188.79,188.78,5.29709226]
[1761926762346,3.9250983,188.79,188.78,8.0611166]
[1761926762662,2.10402434,188.84,188.78,21.30404487]
[1761926762988,3.92715069,188.83,188.79,2.76402434]
[1761926763277,3.92715069,188.82,188.79,2.10402434]
[1761926763580,0.68,188.85,188.8,5.29661016]
[1761926763879,6.032338,188.84,188.8,18.53813558]
[1761926764084,0.68,188.85,188.78,5.29717131]
[1761926764085,2.10402434,188.82,188.78,5.29717131]
[1761926764289,2.10402434,188.8,188.78,5.29717131]
[1761926764450,6.032338,188.79,188.78,5.29717131]
[1761926764650,6.032338,188.79,188.76,5.29773257]
[1761926764954,2.10402434,188.83,188.77,2.10402434]
[1761926765166,3.92558537,188.82,188.78,2.10402434]
[1761926765376,3.92558537,188.81,188.78,5.29717131]
[1761926765551,3.92558537,188.8,188.78,5.29717131]
[1761926765882,3.92558537,188.79,188.78,5.29717131]
[1761926767363,4.60558537,188.79,188.75,5.29801324]
[1761926767563,3.92558537,188.78,188.75,5.29801324]
[1761926767862,3.92558537,188.77,188.75,5.29801324]
[1761926768166,3.92558537,188.76,188.72,5.29873773]
[1761926768350,6.02960971,188.75,188.72,5.29873773]
[1761926768556,3.92558537,188.74,188.72,5.29873773]
[1761926768857,2.78402434,188.78,188.72,21.30990068]
[1761926769059,3.92367021,188.77,188.72,18.54587634]
[1761926769263,2.10402434,188.75,188.72,5.29873773]
[1761926769462,2.10402434,188.73,188.66,0.66]
[1761926769669,3.92367021,188.72,188.66,0.66]
[1761926769848,6.02620269,188.71,188.66,0.66]
[1761926770049,2.10402434,188.71,188.66,2.76402434]
[1761926770451,2.10402434,188.69,188.64,9.78882769]
[1761926770981,2.10402434,188.69,188.65,0.66]
[1761926771180,2.78402434,188.7,188.65,0.66]
[1761926771351,2.10402434,188.68,188.64,18.55385919]
[1761926771968,2.10402434,188.68,188.64,19.21385919]
[1761926772278,2.78402434,188.69,188.64,19.21385919]
[1761926772477,2.78402434,188.69,188.64,5.96110262]
[1761926772810,2.10402434,188.65,188.62,5.30141611]
[1761926773089,0.68,188.68,188.6,5.50194977]
[1761926773090,2.10402434,188.64,188.6,5.50194977]
[1761926773262,2.10402434,188.65,188.6,5.50194977]
[1761926773469,2.10402434,188.65,188.6,18.7575171]
[1761926773678,2.78402434,188.65,188.6,19.4175171]
[1761926774546,2.78402434,188.64,188.6,5.50194977]
[1761926774752,2.10402434,188.64,188.6,5.50194977]
[1761926775056,2.10402434,188.63,188.6,5.50194977]
[1761926775246,2.10402434,188.64,188.6,65.6575171]
[1761926775450,2.10402434,188.63,188.6,52.40194977]
[1761926775652,2.10402434,188.62,188.6,52.40194977]
[1761926776065,2.10402434,188.63,188.6,65.6575171]
[1761926776259,25.89173812,188.69,188.61,2.76402434]
[1761926776260,2.78402434,188.68,188.61,2.76402434]
[1761926776460,2.78402434,188.68,188.62,2.76402434]
[1761926776461,0.68,188.68,188.62,2.76402434]
[1761926776675,2.10402434,188.69,188.62,2.76402434]
[1761926776893,2.10402434,188.69,188.63,0.66]
[1761926777058,2.78402434,188.69,188.63,0.66]
[1761926777463,2.10402434,188.7,188.64,18.55385919]
[1761926777682,0.68,188.71,188.65,2.10402434]
[1761926777863,2.10402434,188.7,188.65,46.9]
[1761926778275,2.10402434,188.7,188.65,47.56]
[1761926778276,2.78402434,188.7,188.65,47.56]
[1761926779758,2.10402434,188.7,188.66,5.30054065]
[1761926779958,2.10402434,188.7,188.66,5.96054065]
[1761926780200,2.10402434,188.7,188.66,5.30054065]
[1761926780368,2.10402434,188.7,188.67,0.66]
[1761926780575,2.10402434,188.72,188.67,0.66]